bitfinex/quotes_BTCUSD_20250829
["timestamp","ask_amount","ask_price","bid_price","bid_amount"]
[1756441553240,0.34,111860.0,111850.0,0.44955622]
[1756441553561,0.68607393,111860.0,111850.0,0.30007622]
[1756441553759,0.68607393,111860.0,111850.0,0.44955622]
[1756441555169,0.86486885,111860.0,111850.0,0.30007622]
[1756441555377,0.86486885,111860.0,111850.0,0.44955622]
[1756441555574,0.68607393,111860.0,111850.0,0.44955622]
[1756441555781,0.86486885,111860.0,111850.0,0.44955622]
[1756441555984,0.68607393,111860.0,111850.0,0.44955622]
[1756441556669,0.34,111860.0,111850.0,0.44955622]
[1756441556887,0.69700507,111870.0,111860.0,0.17879492]
[1756441557098,0.69700507,111870.0,111860.0,0.25260492]
[1756441557539,0.68607393,111870.0,111860.0,0.25260492]
[1756441557755,0.68607393,111870.0,111860.0,0.27948192]
[1756441557965,0.87378943,111880.0,111870.0,0.17877893]
[1756441558182,0.87378943,111880.0,111870.0,0.32821893]
[1756441558394,0.87378943,111880.0,111870.0,0.33326893]
[1756441559275,0.87378943,111880.0,111870.0,0.33226893]
[1756441559829,0.88401717,111880.0,111870.0,0.33226893]
[1756441560033,0.88501717,111880.0,111870.0,0.33226893]
[1756441560686,0.88701717,111880.0,111870.0,0.33226893]
[1756441562278,0.88701717,111880.0,111870.0,0.00505]
[1756441562441,0.88701717,111880.0,111870.0,0.15672473]
[1756441562640,0.88701717,111880.0,111870.0,0.00728473]
[1756441562928,0.88701717,111880.0,111870.0,0.1524]
[1756441564285,0.88701717,111880.0,111870.0,0.15463473]
[1756441564481,0.88701717,111880.0,111870.0,0.15672473]
[1756441564758,0.88701717,111880.0,111870.0,0.1524]
[1756441565599,0.88701717,111880.0,111870.0,0.00296]
[1756441565846,0.88701717,111880.0,111870.0,0.1524]
[1756441566655,0.88701717,111880.0,111870.0,0.15463473]
[1756441567072,0.88701717,111880.0,111870.0,0.15672473]
[1756441569618,0.88701717,111880.0,111870.0,0.15463473]
[1756441570154,0.88701717,111880.0,111870.0,0.00296]
[1756441570304,0.88701717,111880.0,111870.0,0.15672473]
[1756441570887,0.88701717,111880.0,111870.0,0.15668473]
[1756441571086,0.88701717,111880.0,111870.0,0.15445]
[1756441571758,0.88701717,111880.0,111870.0,0.15236]
[1756441572521,0.87806463,111880.0,111870.0,0.15668473]
[1756441575204,0.87806463,111880.0,111870.0,0.33546366]
[1756441575417,0.87806463,111880.0,111870.0,0.33322893]
[1756441575889,0.003,111880.0,111870.0,0.42152525]
[1756441576083,0.343,111880.0,111870.0,0.44839725]
[1756441577810,0.342,111880.0,111870.0,0.44839725]
[1756441578024,0.34,111880.0,111870.0,0.44839725]
[1756441578222,0.34,111880.0,111870.0,0.44939725]
[1756441578445,0.34,111880.0,111870.0,0.45039725]
[1756441581165,0.87455043,111890.0,111880.0,0.17876296]
[1756441581324,0.87455043,111890.0,111880.0,0.18394296]
[1756441581727,0.69575768,111890.0,111880.0,0.18394296]
[1756441582161,0.69575768,111890.0,111880.0,0.27223928]
[1756441582358,0.34008526,111890.0,111880.0,0.27223928]
[1756441582524,0.68615919,111890.0,111880.0,0.29911028]
[1756441583638,0.34008526,111890.0,111880.0,0.29911028]
[1756441585943,0.34008526,111890.0,111880.0,0.30011028]
[1756441586305,0.34008526,111890.0,111880.0,0.30111028]
[1756441587315,0.34008526,111890.0,111880.0,0.45051028]
[1756441587726,0.68615919,111890.0,111880.0,0.45051028]
[1756441590701,0.86490617,111890.0,111880.0,0.27170732]
[1756441590902,0.86490617,111890.0,111880.0,0.45047028]
[1756441593612,0.86490617,111890.0,111880.0,0.30111028]
[1756441593981,0.86490617,111890.0,111880.0,0.45047028]
[1756441594285,0.86490617,111890.0,111880.0,0.42359928]
[1756441597154,0.86490617,111890.0,111880.0,0.27423928]
[1756441597529,0.86490617,111890.0,111880.0,0.24483632]
[1756441597880,0.86490617,111890.0,111880.0,0.42359928]
[1756441598503,0.86490617,111890.0,111880.0,0.09547632]
[1756441598711,0.86490617,111890.0,111880.0,0.09029632]
[1756441599024,0.86490617,111890.0,111880.0,0.23965632]
[1756441599460,1.21029202,111890.0,111880.0,0.23965632]
[1756441599641,0.86456213,111890.0,111880.0,0.23965632]
[1756441601148,0.51883224,111890.0,111880.0,0.23965632]
[1756441601349,0.86455095,111890.0,111880.0,0.23965632]
[1756441601750,0.86455095,111890.0,111880.0,0.24284632]
[1756441602793,0.86455095,111890.0,111880.0,0.23965632]
[1756441602993,0.86455095,111890.0,111880.0,0.24284632]
[1756441605836,0.86455095,111890.0,111880.0,0.31156632]
[1756441607367,0.86455095,111890.0,111880.0,0.49032928]
[1756441607566,0.86455095,111890.0,111880.0,0.49231928]
[1756441607768,0.86455095,111890.0,111880.0,0.31355632]
[1756441610835,0.86455095,111890.0,111880.0,0.49231928]
[1756441612545,0.68080397,111890.0,111880.0,0.49231928]
[1756441613417,0.33508526,111890.0,111880.0,0.49231928]
[1756441613644,8.526e-05,111890.0,111880.0,0.49231928]
[1756441613863,8.526e-05,111890.0,111880.0,0.83803799]
[1756441614087,8.526e-05,111890.0,111880.0,0.86490599]
[1756441614897,8.526e-05,111890.0,111880.0,0.86390599]
[1756441615136,8.526e-05,111890.0,111880.0,0.86590599]
[1756441615333,8.526e-05,111890.0,111880.0,0.51918728]
[1756441615458,8.526e-05,111890.0,111880.0,0.86490599]
[1756441615660,8.526e-05,111890.0,111880.0,0.90794507]
[1756441617850,8.526e-05,111890.0,111880.0,0.75858507]
[1756441618054,8.526e-05,111890.0,111880.0,0.90790507]
[1756441618251,8.526e-05,111890.0,111880.0,0.56218636]
[1756441618419,8.526e-05,111890.0,111880.0,0.41286636]
[1756441618642,8.526e-05,111890.0,111880.0,0.56218636]
[1756441623881,8.526e-05,111890.0,111880.0,0.41286636]
[1756441624090,8.526e-05,111890.0,111880.0,0.56214636]
[1756441626143,0.34580397,111890.0,111880.0,0.56214636]
[1756441626318,0.52455095,111890.0,111880.0,0.41087636]
[1756441626524,0.52455095,111890.0,111880.0,0.18788432]
[1756441626729,0.52455095,111890.0,111880.0,0.31029632]
[1756441627446,0.52455095,111890.0,111880.0,0.30829632]
[1756441628705,0.52455095,111890.0,111880.0,0.30629632]
[1756441628912,0.17883224,111890.0,111880.0,0.30629632]
[1756441629237,0.52455095,111890.0,111880.0,0.30629632]
[1756441631222,0.52455095,111890.0,111880.0,0.218]
[1756441633942,0.95284727,111890.0,111880.0,0.218]
[1756441635724,0.63891906,111890.0,111880.0,0.218]
[1756441635969,0.81766604,111890.0,111880.0,0.218]
[1756441636825,0.81766604,111890.0,111880.0,0.22295]
[1756441636826,0.51874698,111890.0,111880.0,0.22295]
[1756441636997,0.86446569,111890.0,111880.0,0.22295]
[1756441637669,0.86446569,111890.0,111880.0,0.40171296]
[1756441637820,0.34,111890.0,111880.0,0.49000928]
[1756441639557,0.34,111890.0,111880.0,0.49200928]
[1756441639765,0.34,111890.0,111880.0,0.49300928]
[1756441640172,0.68571871,111890.0,111880.0,0.49300928]
[1756441641474,0.34,111890.0,111880.0,0.49300928]
[1756441642644,0.34571871,111900.0,111890.0,0.17874698]
[1756441642845,0.68571871,111900.0,111890.0,0.2720533]
[1756441643070,0.86444971,111900.0,111890.0,0.2720533]
[1756441643420,0.86444971,111900.0,111890.0,0.4213333]
[1756441645256,0.86444971,111900.0,111890.0,0.2720533]
[1756441645459,0.86444971,111900.0,111890.0,0.4213333]
[1756441647737,0.86444971,111900.0,111890.0,0.24258632]
[1756441647884,0.86444971,111900.0,111890.0,0.23757632]
[1756441648729,0.518731,111900.0,111890.0,0.4213333]
[1756441648944,0.86444971,111900.0,111890.0,0.24258632]
[1756441649343,0.86444971,111900.0,111890.0,0.4213333]
[1756441651635,0.86444971,111900.0,111890.0,0.24258632]
[1756441652619,0.86444971,111900.0,111890.0,0.4213333]
[1756441652752,0.86444971,111900.0,111890.0,0.24258632]
[1756441652960,0.86444971,111900.0,111890.0,0.4213333]
[1756441653563,0.68571871,111900.0,111890.0,0.4213333]
[1756441653762,0.86444971,111900.0,111890.0,0.4213333]
[1756441654359,0.68571871,111900.0,111890.0,0.4213333]
[1756441655558,0.34,111900.0,111890.0,0.4213333]
[1756441657175,0.518731,111900.0,111890.0,0.4213333]
[1756441657604,0.34,111900.0,111890.0,0.4213333]
[1756441660994,0.518731,111900.0,111890.0,0.2720533]
[1756441661210,0.34,111900.0,111890.0,0.4212933]
[1756441661778,0.68571871,111900.0,111890.0,0.4212933]
[1756441662638,0.68571871,111900.0,111890.0,0.2720533]
[1756441662818,0.86444971,111900.0,111890.0,0.4212933]
[1756441665522,1.20997014,111900.0,111890.0,0.4212933]
[1756441666516,0.518731,111900.0,111890.0,0.4212933]
[1756441666917,1.20997014,111900.0,111890.0,0.4192833]
[1756441667338,1.20997014,111900.0,111890.0,0.4212933]
[1756441668602,1.20997014,111900.0,111890.0,0.2720533]
[1756441668762,1.20997014,111900.0,111890.0,0.4212933]
[1756441672556,1.20997014,111900.0,111890.0,0.23753632]
[1756441673164,1.20997014,111900.0,111890.0,0.24058632]
[1756441673340,0.518731,111900.0,111890.0,0.24058632]
[1756441673552,1.20997014,111900.0,111890.0,0.4193333]
[1756441674524,1.20997014,111900.0,111890.0,0.4214133]
[1756441678419,1.20997014,111900.0,111890.0,0.24266632]
[1756441678817,1.20997014,111900.0,111890.0,0.4214133]
[1756441679059,1.20997014,111900.0,111890.0,0.4193333]
[1756441679262,1.20997014,111900.0,111890.0,0.24058632]
[1756441679512,1.20997014,111900.0,111890.0,0.4214133]
[1756441679943,1.03123914,111900.0,111890.0,0.4214133]
[1756441680142,0.68561957,111900.0,111890.0,0.4214133]
[1756441680378,0.17871621,111910.0,111900.0,0.178731]
[1756441680591,0.51871621,111910.0,111900.0,0.180811]
[1756441680776,0.51871621,111910.0,111900.0,0.183861]
[1756441681549,0.86533578,111910.0,111900.0,0.183861]
[1756441682273,0.86633578,111910.0,111900.0,0.183861]
[1756441683062,0.86633578,111910.0,111900.0,0.252581]
[1756441683260,0.002,111910.0,111900.0,0.35045879]
[1756441683468,0.002,111910.0,111900.0,0.34087732]
[1756441683688,0.002,111910.0,111900.0,0.68649689]
[1756441683889,0.002,111910.0,111900.0,0.34087732]
[1756441684459,0.001,111910.0,111900.0,0.34087732]
[1756441684893,0.86431882,111920.0,111910.0,0.17871503]
[1756441685100,0.86431882,111920.0,111910.0,0.41829135]
[1756441685337,0.86431882,111920.0,111910.0,0.42134135]
[1756441685538,0.86418619,111920.0,111910.0,0.42134135]
[1756441687432,0.3497252,111920.0,111910.0,0.42134135]
[1756441687696,0.87391121,111920.0,111910.0,0.42134135]
[1756441688756,0.87391121,111920.0,111910.0,0.23749632]
[1756441689391,0.94867613,111920.0,111910.0,0.23749632]
[1756441690314,0.87391121,111920.0,111910.0,0.23749632]
[1756441692014,0.87391121,111920.0,111910.0,0.08829632]
[1756441692225,0.87391121,111920.0,111910.0,0.23749632]
[1756441693548,0.87391121,111920.0,111910.0,0.24054632]
[1756441695161,0.87391121,111920.0,111910.0,0.23749632]
[1756441695968,0.87391121,111920.0,111910.0,0.08829632]
[1756441696320,0.87391121,111920.0,111910.0,0.23745632]
[1756441697089,0.17871503,111910.0,111900.0,0.06872]
[1756441697269,0.86968891,111910.0,111900.0,0.21788]
[1756441697814,0.52420197,111910.0,111900.0,0.21788]
[1756441698968,0.52520197,111910.0,111900.0,0.21788]
[1756441699724,0.52620197,111910.0,111900.0,0.21788]
[1756441700458,0.52620197,111910.0,111900.0,0.22101]
[1756441701024,0.52620197,111910.0,111900.0,0.21788]
[1756441701829,0.87168891,111910.0,111900.0,0.21788]
[1756441704089,1.00840995,111910.0,111900.0,0.06872]
[1756441704294,1.00840995,111910.0,111900.0,0.21788]
[1756441704455,1.03527895,111910.0,111900.0,0.21788]
[1756441709809,0.74504778,111910.0,111900.0,0.21788]
[1756441710016,0.92376281,111910.0,111900.0,0.22101]
[1756441710218,0.89627691,111910.0,111900.0,0.21788]
[1756441713443,0.91792875,111910.0,111900.0,0.21788]
[1756441713860,0.51874698,111890.0,111880.0,0.07185]
[1756441714061,1.21015288,111890.0,111880.0,0.22101]
[1756441714284,1.21015288,111890.0,111880.0,0.22305]
[1756441715130,1.21015288,111890.0,111880.0,0.22505]
[1756441715336,0.95284448,111890.0,111880.0,0.22505]
[1756441715545,0.98033038,111890.0,111880.0,0.22505]
[1756441715783,0.98033038,111890.0,111880.0,0.07385]
[1756441715988,0.98033038,111890.0,111880.0,0.22301]
[1756441716192,0.95284448,111890.0,111880.0,0.21988]
[1756441716395,0.91235998,111890.0,111880.0,0.21988]
[1756441717208,0.91235998,111890.0,111880.0,0.22288]
[1756441717638,0.91235998,111890.0,111880.0,0.22601]
[1756441718049,0.91235998,111890.0,111880.0,0.22101]
[1756441718638,0.91235998,111890.0,111880.0,0.21788]
[1756441718804,0.91235998,111890.0,111880.0,0.22101]
[1756441720010,0.91235998,111890.0,111880.0,0.22301]
[1756441720412,0.91235998,111890.0,111880.0,0.22101]
[1756441724563,1.0006563,111890.0,111880.0,0.21788]
[1756441726330,0.51876296,111880.0,111870.0,0.00321526]
[1756441726463,0.86456414,111880.0,111870.0,0.15237526]
[1756441726661,0.86456414,111880.0,111870.0,0.15441526]
[1756441732846,0.51876296,111880.0,111870.0,0.33319419]
[1756441733061,0.51876296,111880.0,111870.0,0.42149051]
[1756441733275,0.86456414,111880.0,111870.0,0.42149051]
[1756441733479,0.86456414,111880.0,111870.0,0.24271158]
[1756441734313,0.86456414,111880.0,111870.0,0.24471158]
[1756441734492,0.86456414,111880.0,111870.0,0.24771158]
[1756441735125,0.51876296,111880.0,111870.0,0.42649051]
[1756441735339,0.86448026,111880.0,111870.0,0.42649051]
[1756441736962,0.34,111880.0,111870.0,0.42649051]
[1756441737322,0.6857173,111880.0,111870.0,0.42649051]
[1756441739971,0.34,111880.0,111870.0,0.42649051]
[1756441740196,0.6857173,111880.0,111870.0,0.42649051]
[1756441740709,0.86448026,111880.0,111870.0,0.27733051]
[1756441740880,0.86448026,111880.0,111870.0,0.42649051]
[1756441741087,0.6857173,111880.0,111870.0,0.42649051]
[1756441742145,0.86448026,111880.0,111870.0,0.42649051]
[1756441742688,0.86448026,111880.0,111870.0,0.27733051]
[1756441742889,1.21019756,111880.0,111870.0,0.42649051]
[1756441743515,1.21019756,111880.0,111870.0,0.27733051]
[1756441743735,1.21019756,111880.0,111870.0,0.42649051]
[1756441745452,1.0314346,111880.0,111870.0,0.42649051]
[1756441746417,0.34,111880.0,111870.0,0.42649051]
[1756441746762,0.6857173,111880.0,111870.0,0.42649051]
[1756441748188,0.34,111880.0,111870.0,0.42649051]
[1756441748389,0.6857173,111880.0,111870.0,0.42649051]
[1756441748611,0.34,111880.0,111870.0,0.42649051]
[1756441748931,0.3457173,111880.0,111870.0,0.42649051]
[1756441755796,0.3457173,111880.0,111870.0,0.42645051]
[1756441756237,0.51874818,111890.0,111880.0,0.17876296]
[1756441756444,0.86446548,111890.0,111880.0,0.26705928]
[1756441756644,0.86446548,111890.0,111880.0,0.27003928]
[1756441757848,0.86446548,111890.0,111880.0,0.27203928]
[1756441759255,0.86446548,111890.0,111880.0,0.34075928]
[1756441761413,0.86446548,111890.0,111880.0,0.48987928]
[1756441762760,0.86446548,111890.0,111880.0,0.31111632]
[1756441762909,0.86446548,111890.0,111880.0,0.15901632]
[1756441763114,0.86446548,111890.0,111880.0,0.30813632]
[1756441765051,0.86446548,111890.0,111880.0,0.07072]
[1756441765252,0.86446548,111890.0,111880.0,0.21984]
[1756441766053,1.21018278,111890.0,111880.0,0.21984]
[1756441766363,0.86446548,111890.0,111880.0,0.21984]
[1756441768617,0.51874818,111890.0,111880.0,0.21984]
[1756441768823,0.86446548,111890.0,111880.0,0.21984]
[1756441769056,0.83807028,111890.0,111880.0,0.21984]
[1756441769355,0.86494328,111890.0,111880.0,0.21984]
[1756441774176,1.21066058,111890.0,111880.0,0.21984]
[1756441774512,0.86494328,111890.0,111880.0,0.21984]
[1756441775121,1.21066058,111890.0,111880.0,0.21984]
[1756441775334,0.51922598,111890.0,111880.0,0.22307]
[1756441775549,1.21066058,111890.0,111880.0,0.22307]
[1756441775974,0.86494328,111890.0,111880.0,0.22307]
[1756441776758,0.83807028,111890.0,111880.0,0.22307]
[1756441777749,0.83807028,111890.0,111880.0,0.15112]
[1756441777750,0.49235298,111890.0,111880.0,0.15112]
[1756441777965,1.18378758,111890.0,111880.0,0.15112]
[1756441778709,1.18378758,111890.0,111880.0,0.15012]
[1756441779141,1.18378758,111890.0,111880.0,0.14912]
[1756441781563,1.18378758,111890.0,111880.0,0.15235]
[1756441793001,1.18378758,111890.0,111880.0,0.00521]
[1756441793196,1.27087779,111890.0,111880.0,0.15243]
[1756441794642,0.83807028,111890.0,111880.0,0.15441]
[1756441795283,0.83807028,111890.0,111880.0,0.15243]
[1756441797627,1.18378758,111890.0,111880.0,0.15243]
[1756441799053,1.18378758,111890.0,111870.0,0.09567826]
[1756441799298,1.18378758,111890.0,111870.0,0.06880526]
[1756441799299,1.55591486,111880.0,111870.0,0.06880526]
[1756441799618,1.32536988,111880.0,111870.0,0.21808526]
[1756441800252,1.23707356,111880.0,111870.0,0.21808526]
[1756441800662,1.23707356,111880.0,111870.0,0.06880526]
[1756441800869,1.23707356,111880.0,111870.0,0.21812526]
[1756441801656,1.23707356,111880.0,111870.0,0.22326526]
[1756441802266,1.23707356,111880.0,111870.0,0.22128526]
[1756441805441,1.23707356,111880.0,111870.0,0.22326526]
[1756441805618,1.32536988,111880.0,111870.0,0.22326526]
[1756441806807,1.23707356,111880.0,111870.0,0.22326526]
[1756441808484,1.23707356,111880.0,111870.0,0.00324526]
[1756441808714,1.61027676,111880.0,111870.0,0.14936526]
[1756441809049,1.78049558,111880.0,111870.0,8.526e-05]
[1756441809254,1.95708822,111880.0,111870.0,8.526e-05]
[1756441809865,0.51879492,111860.0,111850.0,0.07192]
[1756441810062,1.23771542,111860.0,111850.0,0.07656787]
[1756441810263,1.58343272,111860.0,111850.0,0.00012787]
[1756441810648,1.61031472,111860.0,111850.0,0.00012787]
[1756441810848,1.86814608,111860.0,111850.0,0.00012787]
[1756441811104,1.89203426,111860.0,111850.0,0.00012787]
[1756441811803,1.89303426,111860.0,111850.0,0.00012787]
[1756441812655,1.89403426,111860.0,111850.0,0.00012787]
[1756441813255,1.89303426,111860.0,111850.0,0.00012787]
[1756441813373,1.20193905,111860.0,111850.0,0.00012787]
[1756441813573,1.20293905,111860.0,111850.0,0.00012787]
[1756441813780,1.63729206,111860.0,111850.0,0.00012787]
[1756441816440,0.51882689,111840.0,111830.0,0.07192]
[1756441816686,1.21094027,111840.0,111830.0,0.15030308]
[1756441816851,1.21094027,111840.0,111830.0,0.15228308]
[1756441817454,1.23782627,111840.0,111830.0,0.15228308]
[1756441817662,1.23782627,111840.0,111830.0,0.15428308]
[1756441818269,1.23782627,111840.0,111830.0,0.15628308]
[1756441818834,1.24726663,111840.0,111830.0,0.15628308]
[1756441819019,0.90120994,111840.0,111830.0,0.22736308]
[1756441822477,1.24726663,111840.0,111830.0,0.22736308]
[1756441824577,1.24726663,111840.0,111830.0,0.07804308]
[1756441824992,1.29800927,111840.0,111830.0,0.22744308]
[1756441825539,1.29800927,111840.0,111830.0,0.15868308]
[1756441825946,1.27475253,111840.0,111830.0,0.15868308]
[1756441827298,1.27475253,111840.0,111830.0,0.15468308]
[1756441827501,1.27475253,111840.0,111830.0,0.15568308]
[1756441827657,1.27475253,111840.0,111830.0,0.15668308]
[1756441828183,1.24786653,111840.0,111830.0,0.15668308]
[1756441828712,1.24786653,111840.0,111830.0,0.15470308]
[1756441829108,1.32219041,111840.0,111830.0,0.15470308]
[1756441829254,1.24786653,111840.0,111830.0,0.15470308]
[1756441830291,1.27475153,111840.0,111830.0,0.15470308]
[1756441831519,1.27475153,111840.0,111830.0,0.00530308]
[1756441831918,1.27475153,111840.0,111830.0,0.00214308]
[1756441832118,1.34661315,111840.0,111830.0,0.00214308]
[1756441832480,1.35287198,111840.0,111830.0,0.00214308]
[1756441833166,1.32598698,111840.0,111830.0,0.00214308]
[1756441833578,1.32598698,111840.0,111830.0,0.00515308]
[1756441834382,1.32599003,111840.0,111830.0,0.00515308]
[1756441835256,1.34523061,111840.0,111830.0,0.00515308]
[1756441835538,1.67228378,111840.0,111830.0,0.00515308]
[1756441835772,1.61711228,111840.0,111830.0,0.00515308]
[1756441836396,1.6363545,111840.0,111830.0,0.00515308]
[1756441841157,1.78569414,111840.0,111830.0,0.00214308]
[1756441841606,1.80982232,111840.0,111830.0,0.00214308]
[1756441841760,1.80982211,111840.0,111830.0,0.00214308]
[1756441841975,1.88984337,111840.0,111830.0,0.00214308]
[1756441843219,1.74056337,111840.0,111830.0,0.00214308]
[1756441843574,1.88984337,111840.0,111830.0,0.00515308]
[1756441844171,1.86571519,111840.0,111830.0,0.00515308]
[1756441844399,1.88665401,111840.0,111830.0,0.00214308]
[1756441844610,2.05511232,111840.0,111830.0,0.00214308]
[1756441844985,2.08200132,111840.0,111830.0,0.00214308]
[1756441849255,2.04985569,111840.0,111830.0,0.00214308]
[1756441849816,1.90057569,111840.0,111830.0,0.00214308]
[1756441850056,1.87668751,111840.0,111830.0,0.00214308]
[1756441850269,2.02592751,111840.0,111830.0,0.00214308]
[1756441851502,1.94590625,111840.0,111830.0,0.00531308]
[1756441851708,1.92289482,111840.0,111830.0,0.00531308]
[1756441851909,1.92916606,111840.0,111830.0,0.00531308]
[1756441852121,1.92916606,111840.0,111830.0,0.00214308]
[1756441852296,1.94589022,111840.0,111830.0,0.00214308]
[1756441852496,1.94589022,111840.0,111830.0,0.00531308]
[1756441852927,1.94597022,111840.0,111830.0,0.00531308]
[1756441853243,1.94597022,111840.0,111830.0,0.00214308]
[1756441853466,2.03426654,111840.0,111830.0,0.00214308]
[1756441854104,1.58184204,111840.0,111830.0,0.00214308]
[1756441856138,1.92184204,111840.0,111830.0,0.00214308]
[1756441856334,1.90511788,111840.0,111830.0,0.00214308]
[1756441857021,1.90511788,111840.0,111830.0,0.00531308]
[1756441858187,1.90511788,111840.0,111830.0,0.00214308]
[1756441858389,1.75579788,111840.0,111830.0,0.00531308]
[1756441858541,1.90507788,111840.0,111830.0,0.00531308]
[1756441859639,1.92851448,111840.0,111830.0,0.00531308]
[1756441860393,1.62077344,111840.0,111830.0,0.00729308]
[1756441860590,1.24742767,111840.0,111830.0,0.00729308]
[1756441860798,1.22053867,111840.0,111830.0,0.00729308]
[1756441861609,1.57294796,111840.0,111830.0,0.00729308]
[1756441861963,1.60043386,111840.0,111830.0,0.00729308]
[1756441863624,1.74975386,111840.0,111830.0,0.00729308]
[1756441864277,1.74348028,111840.0,111830.0,0.00729308]
[1756441865233,1.51368938,111840.0,111830.0,0.00729308]
[1756441865557,1.69251627,111840.0,111830.0,0.00729308]
[1756441867559,1.54319627,111840.0,111830.0,0.00729308]
[1756441868270,1.5523571,111840.0,111830.0,0.00729308]
[1756441869526,1.7016371,111840.0,111830.0,0.00729308]
[1756441872573,1.7285241,111840.0,111830.0,0.00729308]
[1756441875863,1.7285241,111840.0,111830.0,0.00531308]
[1756441876315,1.73480162,111840.0,111830.0,0.00531308]
[1756441877568,1.73480162,111840.0,111830.0,0.00729308]
[1756441880233,1.73480162,111840.0,111830.0,0.00531308]
[1756441880596,1.76955465,111840.0,111830.0,0.00214308]
[1756441881669,1.76955465,111840.0,111830.0,0.00530308]
[1756441882076,1.7285241,111840.0,111830.0,0.00530308]
[1756441882277,1.73480262,111840.0,111830.0,0.00740308]
[1756441885933,1.73480262,111840.0,111830.0,0.00530308]
[1756441886620,1.79726509,111840.0,111830.0,0.00214308]
[1756441886830,0.51885888,111820.0,111810.0,0.00316]
[1756441887003,1.55726601,111820.0,111810.0,0.0004772]
[1756441887205,1.73399191,111820.0,111810.0,0.0004772]
[1756441887415,1.74026839,111820.0,111810.0,0.0004772]
[1756441887632,1.76715939,111820.0,111810.0,0.0004772]
[1756441888249,1.76088291,111820.0,111810.0,0.0014772]
[1756441889540,1.76088291,111820.0,111810.0,0.0004772]
[1756441890204,1.76088291,111820.0,111810.0,0.0036372]
[1756441890787,1.80482627,111820.0,111810.0,0.0036372]
[1756441894547,1.45869056,111820.0,111810.0,0.0036372]
[1756441897050,1.43120466,111820.0,111810.0,0.0036372]
[1756441901046,1.3872613,111820.0,111810.0,0.0036372]
[1756441905203,1.3872613,111820.0,111810.0,0.0057372]
[1756441907128,1.3872613,111820.0,111810.0,0.0036372]
[1756441907483,1.3872613,111820.0,111810.0,0.0057372]
[1756441908654,1.3872613,111820.0,111810.0,0.0036372]
[1756441910184,1.4147472,111820.0,111810.0,0.0036372]
[1756441912071,1.44426928,111820.0,111810.0,0.0036372]
[1756441913112,1.4652081,111820.0,111810.0,0.0036372]
[1756441913522,1.43568602,111820.0,111810.0,0.0036372]
[1756441913839,1.43568602,111820.0,111810.0,0.0004772]
[1756441913840,1.78182173,111820.0,111810.0,0.0004772]
[1756441914270,1.78809265,111820.0,111810.0,0.0004772]
[1756441915056,1.87638897,111820.0,111810.0,0.0004772]
[1756441915421,1.87738897,111820.0,111810.0,0.0004772]
[1756441916218,1.89413156,111820.0,111810.0,0.0004772]
[1756441916621,1.89513156,111820.0,111810.0,0.0004772]
[1756441916902,1.97280922,111820.0,111810.0,0.0004772]
[1756441917642,2.01598526,111820.0,111810.0,0.0004772]
[1756441918247,1.98849936,111820.0,111810.0,0.0004772]
[1756441918450,2.01598526,111820.0,111810.0,0.0004772]
[1756441920270,0.97757813,111820.0,111810.0,0.0036972]
[1756441920442,1.56828371,111820.0,111810.0,0.0036972]
[1756441921449,0.53981369,111810.0,111800.0,0.0002]
[1756441921647,1.86624662,111810.0,111800.0,0.0002]
[1756441921870,1.56327229,111810.0,111800.0,0.0002]
[1756441922412,1.56685829,111810.0,111800.0,0.0002]
[1756441922589,1.65515461,111810.0,111800.0,0.0002]
[1756441923162,1.63842195,111810.0,111800.0,0.0002]
[1756441923372,1.63587605,111810.0,111800.0,0.0012]
[1756441923569,1.63587605,111810.0,111800.0,0.0022]
[1756441923795,1.63587605,111810.0,111800.0,0.0012]
[1756441923991,1.63687605,111810.0,111800.0,0.0002]
[1756441924189,1.65613822,111810.0,111800.0,0.0002]
[1756441924389,1.63687308,111810.0,111800.0,0.0002]
[1756441924612,1.65613125,111810.0,111800.0,0.0002]
[1756441925454,1.63687308,111810.0,111800.0,0.0002]
[1756441925597,1.98300879,111810.0,111800.0,0.0002]
[1756441926247,1.63687308,111810.0,111800.0,0.0002]
[1756441926868,1.83376879,111810.0,111800.0,0.0002]
[1756441927072,2.07845936,111810.0,111800.0,0.0002]
[1756441929911,0.53982969,111800.0,111790.0,0.00342]
[1756441930110,1.96064755,111800.0,111790.0,0.0002]
[1756441930928,1.96423355,111800.0,111790.0,0.0002]
[1756441931160,1.96423355,111800.0,111790.0,0.0022]
[1756441932336,1.96423355,111800.0,111790.0,0.0012]
[1756441932822,2.05073505,111800.0,111790.0,0.0012]
[1756441933052,2.05073505,111800.0,111790.0,0.0002]
[1756441933200,2.03403355,111800.0,111790.0,0.0002]
[1756441933538,2.03503355,111800.0,111790.0,0.0002]
[1756441933748,2.07503751,111800.0,111790.0,0.0002]
[1756441933947,2.07503268,111800.0,111790.0,0.0002]
[1756441934077,2.07707268,111800.0,111790.0,0.00342]
[1756441934282,0.19984569,111790.0,111780.0,0.0002]
[1756441934479,1.15717933,111790.0,111780.0,0.0002]
[1756441934716,1.15915933,111790.0,111780.0,0.00217]
[1756441935078,1.16274633,111790.0,111780.0,0.00217]
[1756441936435,1.16374633,111790.0,111780.0,0.00539]
[1756441937052,1.01446633,111790.0,111780.0,0.00539]
[1756441937259,1.16374633,111790.0,111780.0,0.00539]
[1756441942003,1.01446633,111790.0,111780.0,0.00539]
[1756441942155,1.16374633,111790.0,111780.0,0.00539]
[1756441943401,1.07347001,111790.0,111780.0,0.00539]
[1756441943599,1.04598411,111790.0,111780.0,0.00539]
[1756441943818,1.07347001,111790.0,111780.0,0.00539]
[1756441946312,1.07545001,111790.0,111780.0,0.0002]
[1756441947326,1.07545001,111790.0,111780.0,0.00319]
[1756441947529,1.16374633,111790.0,111780.0,0.00319]
[1756441947948,1.01446633,111790.0,111780.0,0.00319]
[1756441948173,1.16374633,111790.0,111780.0,0.00535]
[1756441948777,1.16374633,111790.0,111780.0,0.0002]
[1756441950054,1.16374633,111790.0,111780.0,0.00319]
[1756441950406,1.17001599,111790.0,111780.0,0.00319]
[1756441951526,1.08171967,111790.0,111780.0,0.00535]
[1756441951758,1.07973967,111790.0,111780.0,0.00535]
[1756441953343,0.93045967,111790.0,111780.0,0.00535]
[1756441953508,1.07973967,111790.0,111780.0,0.00535]
[1756441954928,1.07974271,111790.0,111780.0,0.00535]
[1756441955996,1.08172271,111790.0,111780.0,0.00535]
[1756441956562,1.17001903,111790.0,111780.0,0.00535]
[1756441957885,1.17001903,111790.0,111780.0,0.0002]
[1756441958673,1.17001903,111790.0,111780.0,0.00535]
[1756441959107,1.08172271,111790.0,111780.0,0.00535]
[1756441959926,0.93244271,111790.0,111780.0,0.00535]
[1756441960111,1.08168271,111790.0,111780.0,0.00535]
[1756441961812,1.45771366,111790.0,111780.0,0.0002]
[1756441964026,0.76544224,111790.0,111780.0,0.0002]
[1756441964230,1.54601345,111790.0,111780.0,0.0002]
[1756441965596,1.54600444,111790.0,111780.0,0.0002]